fUST/lending_fUST_20250623
["ID","MTS","AMOUNT","RATE_DAILY","PERIOD"]
[367061494,1750642242681,-262.26086521,0.00021917,2]
[367061495,1750642242690,-460.0,0.00021917,2]
[367061496,1750642242700,-500.0,0.00021917,2]
[367061497,1750642242709,-460.0,0.00021917,2]
[367061498,1750642242718,-460.0,0.00021917,2]
[367061499,1750642242727,-460.0,0.00021917,2]
[367061500,1750642242737,-460.0,0.00021917,2]
[367061501,1750642242746,-460.0,0.00021917,2]
[367061502,1750642242755,-460.0,0.00021917,2]
[367061503,1750642242764,-460.0,0.00021917,2]
[367061504,1750642242773,-460.0,0.00021917,2]
[367061505,1750642242783,-460.0,0.00021917,2]
[367061506,1750642242792,-460.0,0.00021917,2]
[367061507,1750642242801,-460.0,0.00021917,2]
[367061508,1750642242810,-528.07452443,0.00021917,2]
[367061509,1750642242820,-460.0,0.00021917,2]
[367061510,1750642242829,-460.0,0.00021917,2]
[367061511,1750642242839,-493.34,0.00021917,2]
[367061512,1750642242849,-460.0,0.00021917,2]
[367061513,1750642242858,-460.0,0.00021917,2]
[367061514,1750642242867,-460.0,0.00021917,2]
[367061515,1750642242877,-460.0,0.00021917,2]
[367061516,1750642242886,-460.0,0.00021917,2]
[367061517,1750642242897,-460.0,0.00021917,2]
[367061518,1750642242907,-460.0,0.00021917,2]
[367061519,1750642242916,-460.0,0.00021917,2]
[367061520,1750642242925,-619.16,0.00021917,2]
[367061521,1750642242939,-411.0,0.00021917,2]
[367061522,1750642242948,-1130.08,0.00021917,2]
[367061523,1750642242958,-460.0,0.00021917,2]
[367061524,1750642242968,-460.0,0.00021917,2]
[367061525,1750642242978,-460.0,0.00021917,2]
[367061526,1750642242988,-460.0,0.00021917,2]
[367061527,1750642242997,-460.00000001,0.00021917,2]
[367061528,1750642243006,-500.0,0.00021917,2]
[367061529,1750642243016,-460.0,0.00021917,2]
[367061530,1750642243026,-460.0,0.00021917,2]
[367061532,1750642243036,-460.0,0.00021917,2]
[367061534,1750642243046,-460.0,0.00021917,2]
[367061536,1750642243056,-460.0,0.00021917,2]
[367061538,1750642243065,-460.0,0.00021917,2]
[367061539,1750642243075,-499.77504656,0.00021917,2]
[367061540,1750642243085,-836.78,0.00021917,2]
[367061541,1750642243095,-460.0,0.00021917,2]
[367061542,1750642243105,-460.0,0.00021917,2]
[367061543,1750642243115,-460.0,0.00021917,2]
[367061544,1750642243124,-460.0,0.00021917,2]
[367061545,1750642243134,-460.0,0.00021917,2]
[367061546,1750642243145,-497.27,0.00021917,2]
[367061547,1750642243156,-628.77,0.00021917,2]
[367061548,1750642243167,-460.0,0.00021917,2]
[367061549,1750642243176,-300.0,0.00021917,2]
[367061550,1750642243187,-529.71852886,0.00021917,2]
[367061551,1750642243197,-460.0,0.00021917,2]
[367061552,1750642243207,-502.87,0.00021917,2]
[367061553,1750642243216,-460.0,0.00021917,2]
[367061554,1750642243226,-492.47,0.00021917,2]
[367061555,1750642243236,-3934.66,0.00021917,2]
[367061556,1750642243246,-460.0,0.00021917,2]
[367061557,1750642243256,-460.0,0.00021917,2]
[367061558,1750642243266,-460.0,0.00021917,2]
[367061559,1750642243276,-460.0,0.00021917,2]
[367061560,1750642243286,-460.0,0.00021917,2]
[367061562,1750642243295,-460.0,0.00021917,2]
[367061563,1750642243305,-460.0,0.00021917,2]
[367061564,1750642243315,-460.0,0.00021917,2]
[367061565,1750642243325,-460.0,0.00021917,2]
[367061566,1750642243335,-460.0,0.00021917,2]
[367061567,1750642243345,-460.0,0.00021917,2]
[367061568,1750642243355,-505.88,0.00021917,2]
[367061569,1750642243365,-660.93,0.00021917,2]
[367061570,1750642243374,-460.0,0.00021917,2]
[367061571,1750642243384,-460.0,0.00021917,2]
[367061572,1750642243394,-2097.65,0.00021917,2]
[367061573,1750642243403,-347.3427623,0.00021917,2]
[367061574,1750642243413,-460.0,0.00021917,2]
[367061575,1750642243423,-460.0,0.00021917,2]
[367061576,1750642243433,-460.0,0.00021917,2]
[367061577,1750642243443,-460.0,0.00021917,2]
[367061578,1750642243452,-460.0,0.00021917,2]
[367061579,1750642243462,-460.0,0.00021917,2]
[367061580,1750642243472,-460.0,0.00021917,2]
[367061581,1750642243481,-460.0,0.00021917,2]
[367061582,1750642243491,-510.01516454,0.00021917,2]
[367061583,1750642243501,-786.89,0.00021917,2]
[367061584,1750642243510,-428.45006287,0.00021917,2]
[367061585,1750642243520,-460.0,0.00021917,2]
[367061586,1750642243529,-1157.37,0.00021917,2]
[367061587,1750642243539,-460.0,0.00021917,2]
[367061588,1750642243548,-460.0,0.00021917,2]
[367061589,1750642243558,-460.0,0.00021917,2]
[367061590,1750642243567,-460.0,0.00021917,2]
[367061591,1750642243577,-460.0,0.00021917,2]
[367061592,1750642243587,-460.0,0.00021917,2]
[367061593,1750642243596,-460.0,0.00021917,2]
[367061594,1750642243607,-460.0,0.00021917,2]
[367061595,1750642243616,-513.24,0.00021917,2]
[367061596,1750642243627,-872.6,0.00021917,2]
[367061597,1750642243636,-517.90276062,0.00021917,2]
[367061598,1750642243646,-460.0,0.00021917,2]
[367061599,1750642243656,-460.0,0.00021917,2]
[367061600,1750642243665,-460.0,0.00021917,2]
[367061601,1750642243674,-460.0,0.00021917,2]
[367061602,1750642243684,-1160.93,0.00021917,2]
[367061603,1750642243694,-460.0,0.00021917,2]
[367061604,1750642243704,-512.45,0.00021917,2]
[367061605,1750642243714,-753.15,0.00021917,2]
[367061606,1750642243724,-460.0,0.00021917,2]
[367061607,1750642243733,-793.03,0.00021917,2]
[367061608,1750642243743,-351.12805477,0.00021917,2]
[367061609,1750642243753,-400.0,0.00021917,2]
[367061610,1750642243764,-460.0,0.00021917,2]
[367061611,1750642243775,-460.0,0.00021917,2]
[367061612,1750642243787,-500.0,0.00021917,2]
[367061613,1750642243797,-460.0,0.00021917,2]
[367061614,1750642243807,-543.67,0.00021917,2]
[367061615,1750642243816,-500.0,0.00021917,2]
[367061616,1750642243826,-460.0,0.00021917,2]
[367061617,1750642243835,-368.38001175,0.00021917,2]
[367061618,1750642243844,-500.0,0.00021917,2]
[367061619,1750642243854,-500.0,0.00021917,2]
[367061620,1750642243864,-500.0,0.00021917,2]
[367061621,1750642244006,-500.0,0.00021917,2]
[367061622,1750642244043,-1000.0,0.00021917,2]
[367061623,1750642244055,-500.0,0.00021917,2]
[367061624,1750642244064,-500.0,0.00021917,2]
[367061625,1750642244073,-500.0,0.00021917,2]
[367061626,1750642244083,-460.0,0.00021917,2]
[367061627,1750642244092,-293.27789331,0.00021917,2]
[367061628,1750642244101,-500.0,0.00021917,2]
[367061629,1750642244110,-460.0,0.00021917,2]
[367061630,1750642244120,-500.0,0.00021917,2]
[367061631,1750642244129,-635.2,0.00021917,2]
[367061632,1750642244139,-460.0,0.00021917,2]
[367061633,1750642244148,-460.0,0.00021917,2]
[367061634,1750642244157,-802.26,0.00021917,2]
[367061635,1750642244167,-460.0,0.00021917,2]
[367061636,1750642244176,-460.0,0.00021917,2]
[367061637,1750642244185,-460.0,0.00021917,2]
[367061638,1750642244194,-460.0,0.00021917,2]
[367061639,1750642244203,-410.75366526,0.00021917,2]
[367061640,1750642244212,-200.0,0.00021917,10]
[367061641,1750642244222,-200.0,0.00021917,10]
[367061642,1750642244231,-200.0,0.00021917,10]
[367061643,1750642244241,-200.0,0.00021917,10]
[367061644,1750642244250,-200.0,0.00021917,10]
[367061645,1750642244260,-460.0,0.00021917,2]
[367061646,1750642244269,-200.0,0.00021917,10]
[367061647,1750642244278,-513.74862691,0.00021917,2]
[367061648,1750642244288,-200.0,0.00021917,10]
[367061649,1750642244297,-5494.03,0.00021917,2]
[367061650,1750642244306,-200.0,0.00021917,10]
[367061651,1750642244316,-200.0,0.00021917,10]
[367061652,1750642244325,-200.0,0.00021917,10]
[367061653,1750642244335,-460.0,0.00021917,2]
[367061654,1750642244344,-200.0,0.00021917,10]
[367061655,1750642244354,-200.0,0.00021917,10]
[367061656,1750642244363,-200.0,0.00021917,10]
[367061657,1750642244373,-200.0,0.00021917,10]
[367061658,1750642244382,-200.0,0.00021917,10]
[367061659,1750642244392,-200.0,0.00021917,10]
[367061660,1750642244402,-460.0,0.00021917,2]
[367061661,1750642244411,-782.31,0.00021917,2]
[367061662,1750642244420,-460.0,0.00021917,2]
[367061663,1750642244429,-200.0,0.00021917,10]
[367061664,1750642244439,-200.0,0.00021917,10]
[367061665,1750642244448,-200.0,0.00021917,10]
[367061666,1750642244457,-460.0,0.00021917,2]
[367061667,1750642244466,-2723.92,0.00021917,2]
[367061668,1750642244476,-200.0,0.00021917,10]
[367061669,1750642244485,-500.0,0.00021917,2]
[367061670,1750642244495,-200.0,0.00021917,10]
[367061671,1750642244504,-200.0,0.00021917,10]
[367061672,1750642244513,-460.0,0.00021917,2]
[367061673,1750642244523,-200.0,0.00021917,10]
[367061674,1750642244532,-208.77478592,0.00021917,2]
[367061675,1750642244541,-460.0,0.00021917,2]
[367061676,1750642244550,-460.0,0.00021917,2]
[367061677,1750642244559,-460.0,0.00021917,2]
[367061678,1750642244568,-465.39,0.00021917,2]
[367061679,1750642244577,-460.0,0.00021917,2]
[367061680,1750642244586,-830.74,0.00021917,2]
[367061681,1750642244595,-460.0,0.00021917,2]
[367061682,1750642244605,-2200.34,0.00021917,2]
[367061683,1750642244614,-460.0,0.00021917,2]
[367061684,1750642244623,-6026.03,0.00021917,2]
[367061685,1750642244632,-468.0,0.00021917,2]
[367061686,1750642244642,-460.0,0.00021917,2]
[367061687,1750642244651,-241.41653467,0.00021917,2]
[367061688,1750642244661,-460.0,0.00021917,2]
[367061689,1750642244670,-482.02697208,0.00021917,2]
[367061690,1750642244679,-1104.79,0.00021917,2]
[367061691,1750642244688,-460.0,0.00021917,2]
[367061692,1750642244698,-5593.88,0.00021917,2]
[367061693,1750642244708,-953.24,0.00021917,2]
[367061694,1750642244718,-460.0,0.00021917,2]
[367061695,1750642244727,-460.50411426,0.00021917,2]
[367061696,1750642244736,-460.0,0.00021917,2]
[367061697,1750642244747,-395.31858737,0.00021917,2]
[367061698,1750642244756,-460.0,0.00021917,2]
[367061699,1750642244766,-893.08,0.00021917,2]
[367061700,1750642244776,-460.0,0.00021917,2]
[367061701,1750642244785,-928.15,0.00021917,2]
[367061702,1750642244795,-460.0,0.00021917,2]
[367061703,1750642244805,-350.42251365,0.00021917,2]
[367061704,1750642244814,-460.0,0.00021917,2]
[367061705,1750642244824,-461.59278658,0.00021917,2]
[367061706,1750642244833,-1764.42,0.00021917,2]
[367061707,1750642244842,-460.0,0.00021917,2]
[367061708,1750642244852,-460.0,0.00021917,2]
[367061709,1750642244861,-460.0,0.00021917,2]
[367061710,1750642244870,-404.15921709,0.00021917,2]
[367061711,1750642244880,-460.0,0.00021917,2]
[367061712,1750642244890,-460.0,0.00021917,2]
[367061713,1750642244900,-460.0,0.00021917,2]
[367061714,1750642244909,-2361.91,0.00021917,2]
[367061715,1750642244918,-460.0,0.00021917,2]
[367061716,1750642244929,-1231.16,0.00021917,2]
[367061717,1750642244939,-366.23323993,0.00021917,2]
[367061718,1750642244948,-293.9483154,0.00021917,2]
[367061719,1750642244957,-383.98123954,0.00021917,2]
[367061720,1750642244968,-460.0,0.00021917,2]
[367061721,1750642244978,-604.84,0.00021917,2]
[367061722,1750642244988,-460.0,0.00021917,2]
[367061723,1750642244998,-460.0,0.00021917,2]
[367061724,1750642245009,-744.26,0.00021917,2]
[367061725,1750642245019,-460.0,0.00021917,2]
[367061726,1750642245031,-460.0,0.00021917,2]
[367061727,1750642245043,-587.99,0.00021917,2]
[367061728,1750642245055,-712.9,0.00021917,2]
[367061729,1750642245066,-460.0,0.00021917,2]
[367061730,1750642245075,-460.0,0.00021917,2]
[367061731,1750642245085,-460.0,0.00021917,2]
[367061732,1750642245095,-734.51,0.00021917,2]
[367061733,1750642245106,-460.0,0.00021917,2]
[367061734,1750642245115,-284.35506019,0.00021917,2]
[367061735,1750642245125,-460.0,0.00021917,2]
[367061736,1750642245135,-460.0,0.00021917,2]
[367061737,1750642245145,-460.0,0.00021917,2]
[367061738,1750642245155,-460.0,0.00021917,2]
[367061739,1750642245164,-460.0,0.00021917,2]
[367061740,1750642245173,-788.67,0.00021917,2]
[367061741,1750642245183,-460.0,0.00021917,2]
[367061742,1750642245192,-460.0,0.00021917,2]
[367061743,1750642245201,-223.27477633,0.00021917,2]
[367061744,1750642245211,-460.0,0.00021917,2]
[367061745,1750642245221,-492.59,0.00021917,2]
[367061746,1750642245231,-460.0,0.00021917,2]
[367061747,1750642245240,-5405.63,0.00021917,2]
[367061748,1750642245250,-460.0,0.00021917,2]
[367061749,1750642245259,-460.0,0.00021917,2]
[367061750,1750642245269,-460.0,0.00021917,2]
[367061751,1750642245278,-460.0,0.00021917,2]
[367061752,1750642245287,-460.0,0.00021917,2]
[367061753,1750642245297,-460.0,0.00021917,2]
[367061754,1750642245306,-460.0,0.00021917,2]
[367061755,1750642245316,-460.0,0.00021917,2]
[367061756,1750642245326,-460.0,0.00021917,2]
[367061757,1750642245336,-793.69,0.00021917,2]
[367061758,1750642245346,-460.0,0.00021917,2]
[367061759,1750642245356,-460.0,0.00021917,2]
[367061760,1750642245366,-3020.47,0.00021917,2]
[367061761,1750642245375,-1283.63,0.00021917,2]
[367061762,1750642245385,-404.62798394,0.00021917,2]
[367061763,1750642245394,-460.0,0.00021917,2]
[367061764,1750642245404,-807.84,0.00021917,2]
[367061765,1750642245414,-460.0,0.00021917,2]
[367061766,1750642245422,-460.0,0.00021917,2]
[367061767,1750642245432,-460.0,0.00021917,2]
[367061768,1750642245441,-460.0,0.00021917,2]
[367061769,1750642245450,-460.0,0.00021917,2]
[367061770,1750642245460,-724.54,0.00021917,2]
[367061771,1750642245470,-484.73,0.00021917,2]
[367061772,1750642245480,-460.0,0.00021917,2]
[367061773,1750642245490,-1173.41,0.00021917,2]
[367061774,1750642245499,-836.45,0.00021917,2]
[367061775,1750642245509,-460.0,0.00021917,2]
[367061776,1750642245520,-1396.63,0.00021917,2]
[367061777,1750642245529,-1227.13,0.00021917,2]
[367061779,1750642245539,-460.0,0.00021917,2]
[367061780,1750642245549,-892.46,0.00021917,2]
[367061781,1750642245559,-586.93401981,0.00021917,2]
[367061782,1750642245570,-460.0,0.00021917,2]
[367061783,1750642245581,-472.67,0.00021917,2]
[367061784,1750642245590,-460.0,0.00021917,2]
[367061785,1750642245600,-7858.66,0.00021917,2]
[367061786,1750642245610,-460.0,0.00021917,2]
[367061787,1750642245620,-460.0,0.00021917,2]
[367061788,1750642245632,-596.18,0.00021917,2]
[367061789,1750642245641,-9433.67,0.00021917,2]
[367061791,1750642245652,-460.0,0.00021917,2]
[367061792,1750642245661,-460.0,0.00021917,2]
[367061793,1750642245671,-460.0,0.00021917,2]
[367061794,1750642245681,-460.0,0.00021917,2]
[367061795,1750642245690,-1497.34,0.00021917,2]
[367061796,1750642245699,-250.0,0.00021917,2]
[367061797,1750642245708,-460.0,0.00021917,2]
[367061798,1750642245717,-460.0,0.00021917,2]
[367061799,1750642245727,-460.0,0.00021917,2]
[367061800,1750642245736,-460.0,0.00021917,2]
[367061802,1750642245745,-460.0,0.00021917,2]
[367061803,1750642245754,-460.0,0.00021917,2]
[367061804,1750642245764,-460.0,0.00021917,2]
[367061805,1750642245773,-460.0,0.00021917,2]
[367061806,1750642245782,-511.83,0.00021917,2]
[367061807,1750642245792,-2272.12,0.00021917,2]
[367061808,1750642245801,-460.0,0.00021917,2]
[367061809,1750642245810,-595.29,0.00021917,2]
[367061810,1750642245819,-460.0,0.00021917,2]
[367061811,1750642245828,-460.0,0.00021917,2]
[367061812,1750642245837,-460.0,0.00021917,2]
[367061813,1750642245847,-1599.82,0.00021917,2]
[367061814,1750642245858,-564.65,0.00021917,2]
[367061815,1750642245868,-460.0,0.00021917,2]
[367061816,1750642245878,-460.0,0.00021917,2]
[367061817,1750642245887,-460.0,0.00021917,2]
[367061818,1750642245898,-460.0,0.00021917,2]
[367061819,1750642245907,-1999.75,0.00021917,2]
[367061820,1750642245916,-460.0,0.00021917,2]
[367061821,1750642245926,-627.78,0.00021917,2]
[367061822,1750642245940,-525.17,0.00021917,2]
[367061823,1750642245950,-2199.73,0.00021917,2]
[367061824,1750642245959,-460.0,0.00021917,2]
[367061825,1750642245968,-460.0,0.00021917,2]
[367061826,1750642245979,-460.0,0.00021917,2]
[367061827,1750642245988,-17395.67,0.00021917,2]
[367061828,1750642245997,-2736.87,0.00021917,2]
[367061829,1750642246007,-460.0,0.00021917,2]
[367061830,1750642246018,-432.55960243,0.00021917,2]
[367061831,1750642246027,-460.0,0.00021917,2]
[367061832,1750642246036,-460.0,0.00021917,2]
[367061833,1750642246045,-460.0,0.00021917,2]
[367061834,1750642246056,-460.0,0.00021917,2]
[367061835,1750642246066,-460.0,0.00021917,2]
[367061836,1750642246075,-897.51,0.00021917,2]
[367061837,1750642246085,-915.71,0.00021917,2]
[367061838,1750642246094,-460.0,0.00021917,2]
[367061839,1750642246103,-460.0,0.00021917,2]
[367061840,1750642246113,-767.32,0.00021917,2]
[367061841,1750642246123,-6373.99,0.00021917,2]
[367061842,1750642246133,-460.0,0.00021917,2]
[367061843,1750642246142,-792.5,0.00021917,2]
[367061844,1750642246152,-460.0,0.00021917,2]
[367061845,1750642246162,-4978.95,0.00021917,2]
[367061846,1750642246172,-500.0,0.00021917,2]
[367061847,1750642246181,-500.0,0.00021917,2]
[367061848,1750642246191,-500.0,0.00021917,2]
[367061849,1750642246200,-500.0,0.00021917,2]
[367061850,1750642246209,-1590.55,0.00021917,2]
[367061851,1750642246218,-500.0,0.00021917,2]
[367061852,1750642246228,-500.0,0.00021917,2]
[367061853,1750642246237,-500.0,0.00021917,2]
[367061854,1750642246247,-500.0,0.00021917,2]
[367061855,1750642246256,-500.0,0.00021917,2]
[367061856,1750642246266,-500.0,0.00021917,2]
[367061857,1750642246275,-500.0,0.00021917,2]
[367061858,1750642246284,-488.23,0.00021917,2]
[367061859,1750642246293,-460.0,0.00021917,2]
[367061860,1750642246303,-460.0,0.00021917,2]
[367061861,1750642246312,-460.0,0.00021917,2]
[367061862,1750642246321,-460.0,0.00021917,2]
[367061863,1750642246331,-460.0,0.00021917,2]
[367061864,1750642246340,-4873.97,0.00021917,2]
[367061865,1750642246350,-460.0,0.00021917,2]
[367061866,1750642246359,-2551.38,0.00021917,2]
[367061867,1750642246368,-2162.3,0.00021917,2]
[367061868,1750642246377,-1007.01,0.00021917,2]
[367061869,1750642246387,-1102.07,0.00021917,2]
[367061870,1750642246397,-460.0,0.00021917,2]
[367061871,1750642246407,-702.82,0.00021917,2]
[367061872,1750642246463,-3001.34,0.00021917,2]
[367061873,1750642246473,-460.0,0.00021917,2]
[367061874,1750642246482,-460.0,0.00021917,2]
[367061875,1750642246491,-460.0,0.00021917,2]
[367061876,1750642246502,-460.0,0.00021917,2]
[367061877,1750642246511,-460.0,0.00021917,2]
[367061878,1750642246520,-1457.53,0.00021917,2]
[367061879,1750642246530,-460.0,0.00021917,2]
[367061880,1750642246539,-467.01,0.00021917,2]
[367061881,1750642246548,-460.0,0.00021917,2]
[367061882,1750642246557,-460.0,0.00021917,2]
[367061883,1750642246567,-460.0,0.00021917,2]
[367061884,1750642246576,-1119.77,0.00021917,2]
[367061885,1750642246585,-464.45128838,0.00021917,2]
[367061886,1750642246594,-1562.2,0.00021917,2]
[367061887,1750642246603,-460.0,0.00021917,2]
[367061888,1750642246612,-1873.12,0.00021917,2]
[367061889,1750642246621,-460.0,0.00021917,2]
[367061890,1750642246630,-460.94535415,0.00021917,2]
[367061891,1750642246639,-460.0,0.00021917,2]
[367061892,1750642246650,-3166.23,0.00021917,2]
[367061893,1750642246659,-460.0,0.00021917,2]
[367061894,1750642246668,-460.0,0.00021917,2]
[367061895,1750642246677,-460.0,0.00021917,2]
[367061896,1750642246686,-1050.92,0.00021917,2]
[367061897,1750642246695,-460.0,0.00021917,2]
[367061898,1750642246703,-460.0,0.00021917,2]
[367061899,1750642246713,-460.76137503,0.00021917,2]
[367061900,1750642246722,-1147.07,0.00021917,2]
[367061901,1750642246731,-460.0,0.00021917,2]
[367061902,1750642246740,-460.0,0.00021917,2]
[367061903,1750642246749,-663.47,0.00021917,2]
[367061904,1750642246758,-1251.21,0.00021917,2]
[367061905,1750642246767,-8285.61,0.00021917,2]
[367061906,1750642246776,-989.75,0.00021917,2]
[367061907,1750642246785,-576.12,0.00021917,2]
[367061908,1750642246795,-256.11180284,0.00021917,2]
[367061909,1750642246804,-1412.46,0.00021917,2]
[367061910,1750642246813,-773.48,0.00021917,2]
[367061911,1750642246822,-5545.73,0.00021917,2]
[367061912,1750642246831,-460.66081284,0.00021917,2]
[367061913,1750642246840,-507.26404931,0.00021917,2]
[367061914,1750642246850,-460.0,0.00021917,2]
[367061915,1750642246859,-1609.32,0.00021917,2]
[367061916,1750642246868,-460.0,0.00021917,2]
[367061917,1750642246879,-708.76,0.00021917,2]
[367061918,1750642246888,-460.50088487,0.00021917,2]
[367061919,1750642246898,-504.49277177,0.00021917,2]
[367061920,1750642246907,-460.0,0.00021917,2]
[367061921,1750642246916,-460.0,0.00021917,2]
[367061922,1750642246925,-460.0,0.00021917,2]
[367061923,1750642246939,-460.69810951,0.00021917,2]
[367061924,1750642246947,-460.0,0.00021917,2]
[367061925,1750642246957,-460.0,0.00021917,2]
[367061926,1750642246966,-6251.71,0.00021917,2]
[367061927,1750642246976,-460.52266667,0.00021917,2]
[367061928,1750642246986,-460.0,0.00021917,2]
[367061929,1750642246995,-780.33,0.00021917,2]
[367061930,1750642247004,-2055.5,0.00021917,2]
[367061931,1750642247015,-460.0,0.00021917,2]
[367061932,1750642247024,-460.0,0.00021917,2]
[367061933,1750642247033,-460.0,0.00021917,2]
[367061934,1750642247042,-1789.0,0.00021917,2]
[367061935,1750642247051,-460.0,0.00021917,2]
[367061936,1750642247061,-1343.51,0.00021917,2]
[367061937,1750642247070,-663.75,0.00021917,2]
[367061938,1750642247079,-500.0,0.00021917,2]
[367061939,1750642247089,-460.0,0.00021917,2]
[367061940,1750642247098,-470.85,0.00021917,2]
[367061941,1750642247109,-958.61,0.00021917,2]
[367061942,1750642247119,-166.0,0.00021918,2]
[367061943,1750642247128,-400.0,0.00021918,7]
[367061944,1750642247137,-672.70991555,0.00021935,2]
[367061945,1750642247147,-317.8609067,0.00021943,2]
[367061946,1750642247156,-177.3077519,0.00021943,2]
[367061947,1750642247166,-1147.9961372,0.00021943,2]
[367061948,1750642247176,-177.3077519,0.00021943,2]
[367061949,1750642247185,-177.3077519,0.00021943,2]
[367061950,1750642247194,-177.3077519,0.00021943,2]
[367061951,1750642247203,-177.3077519,0.00021943,2]
[367061952,1750642247213,-177.3077519,0.00021943,2]
[367061953,1750642247223,-177.2671815,0.00021943,2]
[367061954,1750642247232,-500.0,0.00021973,2]
[367061955,1750642247241,-209.96351216,0.00021973,2]
[367061956,1750642247250,-344.38170563,0.00021973,2]
[367061957,1750642247260,-500.0,0.00021973,2]
[367061958,1750642247270,-500.0,0.00021973,2]
[367061959,1750642247279,-500.0,0.00021973,2]
[367061960,1750642247289,-500.0,0.00021973,2]
[367061961,1750642247300,-500.0,0.00021973,2]
[367061962,1750642247309,-500.0,0.00021973,2]
[367061963,1750642247318,-500.0,0.00021973,2]
[367061964,1750642247327,-500.0,0.00021973,2]
[367061965,1750642247336,-500.0,0.00021973,2]
[367061966,1750642247345,-500.0,0.00021973,2]
[367061967,1750642247355,-500.0,0.00021973,2]
[367061968,1750642247364,-500.0,0.00021973,2]
[367061969,1750642247373,-500.0,0.00021973,2]
[367061970,1750642247382,-500.0,0.00021973,2]
[367061971,1750642247391,-500.0,0.00021973,2]
[367061972,1750642247401,-502.8168343,0.00021973,2]
[367061973,1750642247410,-500.0,0.00021973,2]
[367061974,1750642247420,-500.0,0.00021973,2]
[367061975,1750642247429,-440.1212776,0.00021973,2]
[367061976,1750642247439,-500.0,0.00021973,2]
[367061977,1750642247448,-500.0,0.00021973,2]
[367061978,1750642247458,-160.33928117,0.00021973,2]
[367061979,1750642247467,-500.0,0.00021973,2]
[367061980,1750642247488,-500.0,0.00021973,2]
[367061981,1750642247498,-621.05323907,0.00021973,2]
[367061982,1750642247508,-500.0,0.00021973,2]
[367061983,1750642247518,-500.0,0.00021973,2]
[367061984,1750642247528,-500.0,0.00021973,2]
[367061985,1750642247538,-500.0,0.00021973,2]
[367061986,1750642247548,-500.0,0.00021973,2]
[367061987,1750642247558,-504.0200472,0.00021973,2]
[367061988,1750642247568,-504.57650229,0.00021973,2]
[367061989,1750642247578,-500.0,0.00021973,2]
[367061990,1750642247587,-500.0,0.00021973,2]
[367061991,1750642247597,-500.0,0.00021973,2]
[367061992,1750642247607,-506.03016744,0.00021973,2]
[367061993,1750642247617,-500.0,0.00021973,2]
[367061994,1750642247626,-500.0,0.00021973,2]
[367061995,1750642247636,-500.0,0.00021973,2]
[367061996,1750642247647,-500.0,0.00021973,2]
[367061997,1750642247656,-500.0,0.00021973,2]
[367061998,1750642247666,-516.32,0.00021999,2]
[367061999,1750642247675,-2964.04,0.00022,7]
[367062000,1750642247685,-9432.78,0.00022,7]
[367062001,1750642247695,-187.0,0.00022,2]